[Event "Czech Open-GM 2022"]
[Site "Pardubice"]
[Date "2022.07.23"]
[Round "2.19"]
[White "Aradhya, Garg"]
[Black "Klabis, Rokas"]
[Result "0-1"]
[ECO "C47"]
[WhiteElo "2229"]
[BlackElo "2382"]
[Annotator "TA"]
[PlyCount "116"]
[EventDate "2022.07.22"]
[EventType "swiss"]
[EventCountry "CZE"]
[SourceTitle "playchess.com"]
[Source "ChessBase"]
[SourceQuality "1"]
[TimeControl "40/5400+30:1800+30"]

{[%evp 26,116,22,8,46,48,45,10,28,0,0,0,0,0,0,0,0,0,0,0,18,16,17,14,8,0,0,0,11,0,0,-22,-26,-260,0,0,0,-248,-238,-227,-221,-288,-319,-321,-241,-321,-310,-283,-234,-307,-318,-322,-321,-312,-306,-433,-433,-433,-419,-456,-456,-500,-501,-504,-492,-541,-541,-489,-485,-541,-540,-766,-766,-727,-727,-662,-604,-572,-563,-543,-489,-729,-763,-731,-706,-804,-759,-29990,-29991,-29991,-29992,-29992,-29993]} 1. e4 {[%emt 0:00:02]} e5 {[%emt 0:00:13]} 2. Nf3 {[%emt 0:00:05]} Nc6 {[%emt 0:00:04]} 3. Nc3 {[%emt 0:01:27]} Nf6 {[%emt 0:00:52]} 4. d4 {[%emt 0:00:06]} exd4 {[%emt 0:00:38]} 5. Nxd4 {[%emt 0:00:03]} Bb4 {[%emt 0:01:00]} 6. Nxc6 {[%emt 0:00:06]} bxc6 {[%emt 0:00:03]} 7. Bd3 {[%emt 0:00:05]} d5 {[%emt 0:00:44]} 8. exd5 {[%emt 0:02:34]} O-O {[%emt 0:00:06]} 9. O-O {[%emt 0:00:04]} cxd5 {[%emt 0:00:03]} 10. Bg5 {[%emt 0:00:10]} c6 {[%emt 0:04:53]} 11. Qf3 {[%emt 0:00:48]} h6 {[%emt 0:07:07]} 12. Bxf6 {[%emt 0:09:49]} Qxf6 {[%emt 0:00:05]} 13. Qxf6 {[%emt 0:00:05]} gxf6 {[%emt 0:00:03]} 14. Ne2 {[%emt 0:02:06][%cal Bc3e2,Be2d4,Bd4c2][%mdl 32]} Bg4 {[%emt 0:12:38] [#] 14...Rb8 gains popularity. C47: Scotch Four Knights and Four Knights with 4 g3.} 15. Nd4 $146 {[%emt 0:01:11]} ({Predecessor:} 15. h3 Bxe2 16. Bxe2 Rfe8 17. Bf3 Re5 18. Rfd1 Rae8 19. Rac1 Re1+ 20. Rxe1 Rxe1+ 21. Rxe1 Bxe1 22. Kf1 Ba5 23. Ke2 f5 24. c4 dxc4 25. Bxc6 c3 26. bxc3 Bxc3 27. f4 Kg7 28. Bf3 {½-½ (28) Yandemirov,V (2399)-Nemkova,L (2105) Alushta 2011}) 15... Rfc8 {[%emt 0:06:46]} 16. c4 {[%emt 0:10:35]} Bc5 {[%emt 0:17:28] A strong pair of Bishops. The position is equal.} 17. Nc2 {[%emt 0:05:11]} a5 {[%emt 0:02:47]} 18. Ne3 {[%emt 0:07:53]} Be6 {[%emt 0:02:50]} 19. Rac1 {[%emt 0:03:54]} a4 {[%emt 0:06:46]} 20. Rc2 {[%emt 0:07:04]} d4 {[%emt 0:06:14]} 21. Nf5 {[%emt 0:00:14]} Bxf5 {[%emt 0:01:59]} 22. Bxf5 {[%emt 0:00:02]} Rcb8 {[%emt 0:00:41]} 23. g3 {[%emt 0:04:53]} Ra7 {[%emt 0:01:38]} 24. Re1 {[%emt 0:00:39]} Bb4 {[%emt 0:03:32]} 25. Re4 {[%emt 0:02:51]} Rd8 {[%emt 0:01:25]} 26. Rg4+ {[%emt 0:04:49]} Kh8 {[%emt 0:00:08]} 27. Bd3 {[%emt 0:01:16]} a3 {[%emt 0:00:44]} 28. b3 {[%emt 0:00:32]} Re7 $1 {[%emt 0:00:19]} 29. Rf4 $2 {[%emt 0:03:40]} (29. c5 $11 {and White has nothing to worry.}) 29... Kg7 $2 {[%emt 0:00:10]} (29... Re1+ $19 30. Kg2 Rd1) 30. Rg4+ $11 {[%emt 0:00:13]} Kh8 $2 {[%emt 0:00:08]} (30... Kf8 $11) 31. Rf4 $19 {[%emt 0:00:02] White is on the road to losing.} Re1+ {[%emt 0:00:55]} 32. Kg2 {[%emt 0:00:01]} Rd1 {[%emt 0:02:13]} 33. Be2 {[%emt 0:00:14]} d3 $1 {[%emt 0:07:54]} 34. Bxd1 {[%emt 0:00:03]} dxc2 {[%emt 0:00:04]} 35. Bxc2 {[%emt 0:00:01][%mdl 4096] Endgame KRB-KRB} c5 $1 {[%emt 0:00:09]} 36. Rxf6 {[%emt 0:08:45]} Rd2 {[%emt 0:00:15]} 37. Be4 {[%emt 0:00:12]} ({Of course not} 37. Rxh6+ Kg7 38. Rh7+ Kg8 $19) ({Don't blunder} 37. Rxf7 $2 Rxc2 38. Ra7 Rxa2 $19) 37... Kg7 {[%emt 0:01:54]} 38. Rf4 {[%emt 0:05:11]} Rxa2 {[%emt 0:01:01]} 39. Bd5 {[%emt 0:00:07]} f6 {[%emt 0:01:34]} 40. Re4 {[%emt 0:00:23]} (40. Rg4+ $142 Kf8 41. Rg6) 40... Rd2 {[%emt 0:01:25]} 41. Re7+ {[%emt 0:32:42] [#]} Kf8 $1 {[%emt 0:31:07]} 42. Ra7 {[%emt 0:02:53]} a2 {[%emt 0:00:22]} 43. Kf3 {[%emt 0:01:21]} Bc3 {[%emt 0:03:49]} 44. Ke3 {[%emt 0:00:51]} Rb2 {[%emt 0:01:06]} 45. Ra8+ {[%emt 0:14:55]} Ke7 {[%emt 0:00:31] And now ...Bd4+ would win.} 46. Ra7+ {[%emt 0:00:09]} Kd8 {[%emt 0:00:45] ...Bd4+ is the strong threat.} 47. Ra8+ {[%emt 0:01:17]} Kc7 {[%emt 0:00:12] aiming for ...Bd4+.} 48. b4 {[%emt 0:01:21]} Bd4+ {[%emt 0:01:28][%mdl 64] Skewer, Deflection} 49. Kd3 {[%emt 0:00:40]} Rxf2 {[%emt 0:00:42]} 50. Ra7+ {[%emt 0:00:16]} Kd8 {[%emt 0:00:04]} 51. Ra8+ {[%emt 0:00:24]} Ke7 {[%emt 0:00:11]} 52. Ra7+ {[%emt 0:00:07]} Kf8 {[%emt 0:00:50]} 53. Ra8+ {[%emt 0:00:24] [#]} (53. bxc5 $142 a1=Q 54. Rxa1 Bxa1 55. h3) 53... Kg7 $1 {[%emt 0:00:05]} 54. Ra7+ {[%emt 0:00:00]} Kg6 {[%emt 0:00:00]} 55. Bf7+ {[%emt 0:00:00]} Kf5 {[%emt 0:00:00]} 56. Re7 {[%emt 0:00:00]} a1=Q {[%emt 0:00:00][%csl Gd4][%cal Ra1c3] Black mates.} 57. Be6+ {[%emt 0:00:00]} Kg6 {[%emt 0:00:00][%cal Ra1b1]} 58. Bf7+ {[%emt 0:00:00]} Kg5 {[%emt 0:00:00] Weighted Error Value: White=0.51/Black=0.08 (flawless)} 0-1

[Event "Czech Open-GM 2022"]
[Site "Pardubice"]
[Date "2022.07.23"]
[Round "2.20"]
[White "Niedbala, Bartlomiej"]
[Black "Koziorowicz, Michal"]
[Result "1-0"]
[ECO "C18"]
[WhiteElo "2381"]
[BlackElo "2231"]
[Annotator "TA"]
[PlyCount "67"]
[EventDate "2022.07.22"]
[EventType "swiss"]
[EventCountry "CZE"]
[SourceTitle "playchess.com"]
[Source "ChessBase"]
[SourceQuality "1"]
[TimeControl "40/5400+30:1800+30"]

{[%evp 24,67,27,14,26,19,17,38,16,21,33,16,35,8,45,16,54,54,70,64,62,62,54,58,72,66,222,193,303,305,686,682,729,720,728,732,693,714,877,875,906,897,2047,1579,29995,29996]} 1. e4 {[%emt 0:00:02]} e6 {[%emt 0:00:10]} 2. d4 {[%emt 0:00:09]} d5 {[%emt 0:00:06]} 3. Nc3 {[%emt 0:00:04]} Bb4 {[%emt 0:00:10]} 4. e5 {[%emt 0:00:07]} c5 {[%emt 0:00:08]} 5. a3 {[%emt 0:00:06]} Bxc3+ {[%emt 0:00:06]} 6. bxc3 {[%emt 0:00:03]} Ne7 {[%emt 0:00:10]} 7. Qg4 {[%emt 0:01:09]} Qc7 {[%emt 0:00:11]} 8. Bd3 {[%emt 0:00:09]} cxd4 {[%emt 0:01:03]} 9. Ne2 {[%emt 0:00:47]} dxc3 {[%emt 0:00:29]} 10. Qxg7 {[%emt 0:00:24]} Rg8 {[%emt 0:00:07]} 11. Qxh7 {[%emt 0:00:04]} Qxe5 {[%emt 0:00:40]} 12. Bf4 {[%emt 0:10:46]} Qf6 {[%emt 0:00:31]} 13. h4 $1 {[%emt 0:04:18]} Nd7 {[%emt 0:01:26] [#] And now ...Rh8 would win. C18: French: 3 Nc3 Bb4: Main line: 7 h4 and 7 Qg4.} 14. Bg5 {[%emt 0:06:42]} Qh8 {[%emt 0:00:07]} 15. Qxh8 {[%emt 0:03:27]} Rxh8 {[%emt 0:00:07] White is slightly better.} 16. Nxc3 {[%emt 0:01:02]} a6 {[%emt 0:00:13] Inhibits Nb5.} 17. Rb1 {[%emt 0:06:05]} f6 {[%emt 0:06:10]} 18. Bd2 {[%emt 0:04:17] [#]} e5 $146 {[%emt 0:04:30]} ({Predecessor:} 18... Kf7 19. f3 Nc6 20. Kf2 Nc5 21. g4 Bd7 22. h5 Ne5 23. Be3 Ncxd3+ 24. cxd3 b5 {½-½ (43) Resika,N (2203)-Macsik,T (2188) Paks 2001}) 19. f4 {[%emt 0:07:48] With the idea fxe5.} Nc5 {[%emt 0:04:47]} 20. fxe5 {[%emt 0:05:52]} fxe5 {[%emt 0:01:05]} 21. Bg5 {[%emt 0:01:41]} Be6 {[%emt 0:03:26]} 22. Bf6 {[%emt 0:06:37][%csl LRe5,LRh8] A strong pair of Bishops.} Rg8 {[%emt 0:02:24]} 23. O-O {[%emt 0:10:23] Threatens to win with h5.} Nc6 $1 {[%emt 0:31:05]} 24. h5 {[%emt 0:07:50] Strongly threatening h6. White is more active.} e4 $2 {[%emt 0:06:31] Black cannot hold the game after this.} ({Better is} 24... Nxd3 $14 25. cxd3 b5) 25. Be2 $18 {[%emt 0:03:25] aiming for h6.} Kd7 {[%emt 0:03:56]} (25... d4 $142) 26. Rbd1 {[%emt 0:02:52][%cal Bb1d1,Bd1d5,Bd5g5][%mdl 32]} Bh3 $2 {[%emt 0:06:53]} (26... Ne7 27. Bc4 Kd6 28. Bxe7+ Kxe7) 27. Rxd5+ {[%emt 0:02:38]} Kc7 {[%emt 0:00:23]} 28. Bg5 {[%emt 0:03:22]} Ne6 {[%emt 0:02:45]} 29. Rf7+ {[%emt 0:02:27]} (29. gxh3 Nxg5 30. Kh2 Rae8 $16) 29... Kb8 {[%emt 0:00:20]} 30. Nxe4 {[%emt 0:01:47]} ({Not} 30. gxh3 Nxg5 31. Rf1 Ka7 $16) 30... Ncd4 {[%emt 0:00:06]} 31. Bd1 {[%emt 0:00:54]} Nxg5 {[%emt 0:03:42]} 32. Rxg5 {[%emt 0:00:22]} Re8 {[%emt 0:01:22]} 33. Nd6 {[%emt 0:00:24][%csl Gd6][%cal Rf7b7] [#]} Re1+ {[%emt 0:00:31]} 34. Kf2 {[%emt 0:00:04] Weighted Error Value: White=0.05 (flawless) /Black=0.85} 1-0

[Event "Czech Open-GM 2022"]
[Site "Pardubice"]
[Date "2022.07.23"]
[Round "2.21"]
[White "Gloser, David"]
[Black "Neuman, Petr"]
[Result "0-1"]
[ECO "B12"]
[WhiteElo "2221"]
[BlackElo "2378"]
[Annotator "TA"]
[PlyCount "58"]
[EventDate "2022.07.22"]
[EventType "swiss"]
[EventCountry "CZE"]
[SourceTitle "playchess.com"]
[Source "ChessBase"]
[SourceQuality "1"]
[TimeControl "40/5400+30:1800+30"]

{[%evp 18,58,28,25,19,-3,10,23,30,0,0,0,0,-22,0,0,0,-59,-51,-48,-48,-53,-67,-96,0,-188,-157,-231,-222,-247,-258,-335,-230,-333,-330,-643,-635,-634,-552,-887,-885,-765,-650]} 1. e4 {[%emt 0:00:03]} c6 {[%emt 0:00:09]} 2. d4 {[%emt 0:00:13]} d5 {[%emt 0:00:05]} 3. e5 {[%emt 0:00:19]} Bf5 {[%emt 0:00:06]} 4. c4 {[%emt 0:04:46]} dxc4 {[%emt 0:02:21]} 5. Bxc4 {[%emt 0:01:19]} e6 {[%emt 0:00:05]} 6. Nc3 {[%emt 0:03:06]} Nd7 {[%emt 0:02:49]} 7. Nge2 {[%emt 0:06:44][%cal Bg1e2,Be2g3,Bg3e4][%mdl 32]} Nb6 {[%emt 0:02:53]} 8. Bb3 {[%emt 0:00:30]} Ne7 {[%emt 0:00:35]} 9. O-O {[%emt 0:03:43]} Ned5 {[%emt 0:00:58]} 10. Ng3 {[%emt 0:07:33]} Bg6 {[%emt 0:00:58] B12: Caro-Kann: Advance Variation.} 11. f4 {[%emt 0:00:26]} Qd7 {[%emt 0:03:36]} 12. Qf3 {[%emt 0:08:59]} O-O-O {[%emt 0:02:06] [#] White has an edge.} 13. Nge4 $146 {[%emt 0:10:18]} ({Predecessor:} 13. f5 exf5 14. Nxf5 f6 15. Ne4 Qxf5 16. Qxf5+ Bxf5 17. Rxf5 Re8 18. Bd2 fxe5 19. Rxe5 Rxe5 20. dxe5 {0-1 (51) Glamuzina,J (1932)-Kurcubic,D (2065) Sombor 2019}) 13... Kb8 {[%emt 0:09:50]} 14. Bd2 {[%emt 0:00:30]} (14. Nc5 $5 {[%cal Rc5d7]} Qe8 15. Nxd5 Nxd5 16. Bd2 $11) 14... Be7 {[%emt 0:04:57]} 15. a4 {[%emt 0:02:39]} Nc7 {[%emt 0:02:45]} (15... Nb4 $5 {[%cal Rb6c4]}) 16. a5 {[%emt 0:02:47]} Nbd5 {[%emt 0:00:08]} (16... Qxd4+ $2 17. Be3 Qb4 18. axb6 axb6 19. Bc2 $18) 17. Na4 {[%emt 0:02:18]} ({White should play} 17. Nxd5 $11 Nxd5 18. Ng3) 17... Bxe4 $15 {[%emt 0:03:07]} 18. Qxe4 {[%emt 0:00:06]} f5 {[%emt 0:01:59]} 19. exf6 {[%emt 0:06:58]} Nxf6 {[%emt 0:02:18]} 20. Qe2 Nb5 ({Black should try} 20... Qxd4+ $17 21. Be3 Qb4) 21. f5 $2 {[%emt 0:03:27] [#]} (21. Bc3 $11) 21... Nxd4 {[%emt 0:01:38]} (21... Qxd4+ 22. Be3 Qb4 23. Bxe6 $15) 22. Qc4 {[%emt 0:04:15]} (22. Bf4+ $17 Bd6 23. Qe3 Nxf5 24. Qxe6 Bxf4 25. Rxf4 Qxe6 26. Bxe6) 22... e5 {[%emt 0:03:55]} ({Not} 22... exf5 23. Bf4+ Kc8 24. Rad1 $11) 23. Bd1 {[%emt 0:07:01]} Nxf5 {[%emt 0:03:45] Threatens to win with ...Ng3. Pair of Knights!} 24. Qe2 {[%emt 0:06:20]} Bd6 {[%emt 0:04:43]} 25. a6 {[%emt 0:03:50]} (25. Kh1 $142) 25... b5 $19 {[%emt 0:01:21]} 26. Rxf5 $2 {[%emt 0:02:59] [#]} (26. Nc3) 26... Qxf5 {[%emt 0:00:45] Black is clearly winning.} 27. Be3 {[%emt 0:00:34]} Nd5 {[%emt 0:03:14]} 28. Nc5 {[%emt 0:00:31]} Nxe3 {[%emt 0:00:58]} 29. Qxe3 {[%emt 0:00:05]} Qf4 {[%emt 0:00:28] Weighted Error Value: White=0.70/Black=0.24 (precise)} 0-1

[Event "Czech Open-GM 2022"]
[Site "Pardubice"]
[Date "2022.07.23"]
[Round "2.22"]
[White "Keller, Peter"]
[Black "Gombocz, Ferenc Jr."]
[Result "1-0"]
[ECO "C76"]
[WhiteElo "2377"]
[BlackElo "2229"]
[Annotator "TA"]
[PlyCount "55"]
[EventDate "2022.07.22"]
[EventType "swiss"]
[EventCountry "CZE"]
[SourceTitle "playchess.com"]
[Source "ChessBase"]
[SourceQuality "1"]
[TimeControl "40/5400+30:1800+30"]

{[%evp 14,55,33,29,28,28,35,36,39,39,51,62,141,113,120,110,135,98,114,113,274,252,256,166,172,154,242,229,240,208,194,212,252,207,243,239,366,376,429,439,628,634,605,595]} 1. e4 {[%emt 0:00:04]} e5 {[%emt 0:00:08]} 2. Nf3 {[%emt 0:00:07]} Nc6 {[%emt 0:00:12]} 3. Bb5 {[%emt 0:00:35]} g6 {[%emt 0:00:29]} 4. c3 {[%emt 0:00:48]} a6 {[%emt 0:00:17]} 5. Ba4 {[%emt 0:00:07]} d6 {[%emt 0:00:12]} 6. d4 {[%emt 0:00:12]} Bd7 {[%emt 0:00:09]} 7. O-O {[%emt 0:00:49]} Bg7 {[%emt 0:00:21]} 8. h3 {[%emt 0:00:26]} Nf6 {[%emt 0:00:23] C76: Ruy Lopez: Deferred Steinitz: 5 c3 Bd7 6 d4 g6.} 9. Re1 {[%emt 0:00:07]} O-O {[%emt 0:00:10]} 10. Bc2 {[%emt 0:00:13]} h6 {[%emt 0:06:21] White is slightly better.} 11. Nbd2 {[%emt 0:00:41]} Nh7 {[%emt 0:02:03][%cal Re5d4]} 12. Nf1 {[%emt 0:03:47] [#]} f5 $146 {[%emt 0:08:10]} (12... Re8 $14) ({Predecessor:} 12... Kh8 13. Ng3 exd4 14. cxd4 Ng5 15. Nxg5 hxg5 16. Be3 Qf6 17. e5 dxe5 18. Ne4 Qd8 19. dxe5 Nxe5 20. Bxg5 {1-0 (34) Onischuk,V (2427)-Lomsadze,D (2280) Batumi 2006}) 13. dxe5 {[%emt 0:13:22]} dxe5 {[%emt 0:10:45]} 14. exf5 {[%emt 0:05:10]} gxf5 {[%emt 0:01:28]} 15. Nxe5 {[%emt 0:25:09]} Nxe5 {[%emt 0:02:02]} 16. Rxe5 {[%emt 0:00:09]} Bc6 $2 {[%emt 0:21:18] [#]} (16... Bxe5 $16 17. Qd5+ Rf7 18. Qxe5 Qf6 19. Qxf6 (19. Qxc7 Ba4 $15) 19... Rxf6) 17. Qxd8 {[%emt 0:03:44]} Raxd8 {[%emt 0:00:09]} 18. Re7 {[%emt 0:01:42] And now Ng3 would win.} f4 {[%emt 0:02:04]} 19. Bd2 {[%emt 0:19:58]} (19. Rxc7 Rde8 $16) 19... Bb5 {[%emt 0:10:09]} (19... Ng5 $16 20. f3 (20. Rxc7 Rde8 $16) 20... Rf6 21. Rxc7 Bf8) 20. Rd1 $18 {[%emt 0:07:14] c4 is the strong threat.} Kh8 {[%emt 0:07:37]} 21. Bc1 {[%emt 0:07:11] Hoping for Rxd8.} (21. Rxc7 $6 Be2 $16) 21... Rxd1 {[%emt 0:00:26]} 22. Bxd1 {[%emt 0:00:02]} Ng5 {[%emt 0:01:51]} 23. Nh2 {[%emt 0:04:02] Inhibits f3.} ({Much less strong is} 23. Rxc7 Re8 24. Rxb7 (24. Bxf4 Ne6 $16) 24... Re1 25. Rb8+ Bf8 $18) 23... Bf6 {[%emt 0:01:22] [#]} 24. Re1 {[%emt 0:00:14]} (24. Rxc7 Re8 25. Ng4 Re1+ 26. Kh2 Bd8 27. Rxb7 Rxd1 28. Bxf4 Rd7 29. Rxd7 Bxd7 $16) 24... Rg8 {[%emt 0:02:15]} (24... Bc4 $142 25. Bb3 (25. Bxf4 Bxc3 26. bxc3 Rxf4 $16) 25... Bxb3) 25. Ng4 {[%emt 0:01:54]} Bd8 {[%emt 0:02:09]} 26. Bxf4 {[%emt 0:00:37] White is clearly winning.} h5 {[%emt 0:00:42]} (26... Nf7 $142 27. Bf3 b6 28. Nxh6 Nxh6 29. Bxh6 Kh7) 27. Be5+ {[%emt 0:00:29]} Kh7 {[%emt 0:00:14]} 28. Bc2+ {[%emt 0:00:04] Black got outplayed after the opening.  Weighted Error Value: White=0.15 (very precise) /Black=0.47} 1-0

[Event "Czech Open-GM 2022"]
[Site "Pardubice"]
[Date "2022.07.23"]
[Round "2.23"]
[White "Jedlicka, Ales"]
[Black "Sorensen, Hampus"]
[Result "0-1"]
[ECO "D38"]
[WhiteElo "2216"]
[BlackElo "2376"]
[Annotator "TA"]
[PlyCount "68"]
[EventDate "2022.07.22"]
[EventType "swiss"]
[EventCountry "CZE"]
[SourceTitle "playchess.com"]
[Source "ChessBase"]
[SourceQuality "1"]
[TimeControl "40/5400+30:1800+30"]

{[%evp 13,68,14,47,1,3,13,0,10,17,0,6,-8,0,0,17,-16,-11,-21,-23,-22,-25,-36,-19,-54,-63,-60,-64,-127,-115,-325,-341,-341,-333,-331,-322,-332,-254,-242,-221,-216,-223,-240,-249,-300,-277,-303,-303,-331,-313,-492,-491,-435,-428,-519,-522,-459,-452]} 1. d4 {[%emt 0:00:25]} Nf6 {[%emt 0:00:28]} 2. Nf3 {[%emt 0:00:22]} d5 {[%emt 0:00:35]} 3. c4 {[%emt 0:00:25]} e6 {[%emt 0:00:59]} 4. Nc3 {[%emt 0:00:45]} Bb4 {[%emt 0:03:44]} 5. Qa4+ {[%emt 0:00:35]} Nc6 {[%emt 0:00:05]} 6. e3 {[%emt 0:00:15]} O-O {[%emt 0:01:44]} 7. Bd2 {[%emt 0:00:36]} a6 {[%emt 0:08:16]} 8. Qc2 {[%emt 0:02:23] 8.Qc2 is better than 8.a3. D38: Queen's Gambit Declined: Ragozin Defence (4 Nf3 Bb4).} (8. a3 $14 {was preferrable.} Bxc3 9. Bxc3) 8... Re8 {[%emt 0:15:28]} 9. a3 {[%emt 0:02:49]} Bd6 {[%emt 0:00:35]} 10. c5 {[%emt 0:15:38] The position is equal.} Bf8 {[%emt 0:00:10] [#]} 11. Bd3 $146 {[%emt 0:00:54]} ({Predecessor:} 11. b4 e5 12. dxe5 Nxe5 13. Be2 Nxf3+ 14. Bxf3 d4 15. Nd1 Ng4 16. O-O Ne5 17. Be4 {0-1 (82) Gandrud,V (2330)-Elsness,F (2466) Stavanger 2017}) 11... e5 {[%emt 0:08:55]} 12. dxe5 {[%emt 0:05:28]} Nxe5 {[%emt 0:00:28]} 13. Nxe5 {[%emt 0:00:11]} Rxe5 {[%emt 0:00:11]} 14. Ne2 {[%emt 0:00:48]} Ne4 {[%emt 0:02:20]} 15. Bxe4 {[%emt 0:14:01]} Rxe4 {[%emt 0:02:08]} 16. b4 {[%emt 0:01:55]} c6 {[%emt 0:03:59]} 17. Bc3 {[%emt 0:01:10]} Qg5 {[%emt 0:02:49]} 18. Ng3 {[%emt 0:04:43]} Rc4 {[%emt 0:03:46][%cal Oa6a5]} 19. O-O {[%emt 0:04:15]} h5 {[%emt 0:03:34][%cal Bh7h5,Bh5h4][%mdl 32] ...h4 is the strong threat.} 20. Rac1 {[%emt 0:06:20] [#]} (20. f4 $15 Qg4 21. Rf3) 20... h4 $1 $17 {[%emt 0:02:43]} 21. f4 $2 {[%emt 0:00:31] This move loses the game for White.} (21. Nh1 $17) 21... Qe7 $19 {[%emt 0:01:14]} 22. Ne2 {[%emt 0:07:24][%cal Bg3e2,Be2g1,Bg1f3][%mdl 32]} Qxe3+ {[%emt 0:01:19]} 23. Kh1 {[%emt 0:00:28]} Bg4 {[%emt 0:02:54]} 24. Ng1 Qe4 {[%emt 0:07:56]} ({Much less strong is} 24... Rxf4 25. Bd2 Rf2 26. Bxe3 $18) 25. Qxe4 {[%emt 0:08:59]} Rxe4 {[%emt 0:01:36][%cal Bc4e4,Be4e2,Be2a2,Ba2a3][%mdl 32]} 26. h3 {[%emt 0:00:14]} Bh5 {[%emt 0:02:28][%cal Oa6a5]} 27. Be1 {[%emt 0:08:44]} Be7 {[%emt 0:00:23]} 28. f5 {[%emt 0:00:32]} Bf6 {[%emt 0:03:44]} 29. Nf3 {[%emt 0:05:06]} Rae8 {[%emt 0:07:00]} 30. Bd2 {[%emt 0:01:02]} Re2 {[%emt 0:00:54] [#] Strongly threatening ...Bxf3.} 31. Bf4 {[%emt 0:00:39]} (31. Rcd1 $142) 31... Ra2 {[%emt 0:02:28] Black is clearly winning.} 32. Rfe1 {[%emt 0:05:52]} Rxe1+ {[%emt 0:00:27]} 33. Rxe1 {[%emt 0:00:09]} Bxf3 {[%emt 0:00:13]} 34. gxf3 {[%emt 0:00:10]} Rxa3 {[%emt 0:00:08] Weighted Error Value: White=0.33/Black=0.07 (flawless)} 0-1